fUST/lending_fUST_20250725
["ID","MTS","AMOUNT","RATE_DAILY","PERIOD"]
[374653423,1753401059169,-460.0,0.00019643,2]
[374653424,1753401059179,-460.0,0.00019643,2]
[374653425,1753401059188,-460.0,0.00019643,2]
[374653426,1753401059198,-503.11,0.00019643,2]
[374653427,1753401059207,-460.0,0.00019643,2]
[374653428,1753401059217,-738.2,0.00019643,2]
[374653429,1753401059226,-460.0,0.00019643,2]
[374653430,1753401059237,-532.71,0.00019643,2]
[374653431,1753401059248,-460.0,0.00019643,2]
[374653432,1753401059258,-460.0,0.00019646,2]
[374653433,1753401059267,-683.84,0.00019646,2]
[374653434,1753401059277,-460.0,0.00019646,2]
[374653435,1753401059286,-460.0,0.00019646,2]
[374653436,1753401059296,-151.0,0.00019646,2]
[374653437,1753401059305,-188.465792,0.00019646,2]
[374653438,1753401059315,-151.0,0.00019646,2]
[374653439,1753401059325,-217.669127,0.00019646,2]
[374653440,1753401059334,-217.669127,0.00019646,2]
[374653441,1753401059344,-231.456694,0.00019646,2]
[374653442,1753401059354,-231.456694,0.00019646,2]
[374653443,1753401059363,-460.0,0.00019646,2]
[374653444,1753401059373,-227.064974,0.00019646,2]
[374653445,1753401059384,-227.064974,0.00019646,2]
[374653446,1753401059393,-1556.96,0.00019646,2]
[374653447,1753401059405,-1197.85,0.00019646,2]
[374653448,1753401059414,-517.5,0.00019646,2]
[374653449,1753401059424,-460.0,0.00019646,2]
[374653450,1753401059434,-554.23,0.00019646,2]
[374653451,1753401059447,-976.57,0.00019646,2]
[374653452,1753401059457,-823.75,0.00019646,2]
[374653453,1753401059467,-1147.02,0.00019646,2]
[374653454,1753401059476,-577.94,0.00019646,2]
[374653455,1753401059485,-1434.4,0.00019646,2]
[374653456,1753401059496,-6244.15,0.00019646,2]
[374653457,1753401059505,-460.0,0.00019646,2]
[374653458,1753401059515,-506.67675833,0.00019745,2]
[374653459,1753401059525,-460.0,0.00019745,2]
[374653460,1753401059534,-460.0,0.00019745,2]
[374653461,1753401059544,-460.0,0.00019745,2]
[374653462,1753401059553,-662.7,0.00019745,2]
[374653463,1753401059563,-460.0,0.00019745,2]
[374653464,1753401059573,-465.09424804,0.00019745,2]
[374653465,1753401059582,-460.0,0.00019745,2]
[374653466,1753401059592,-460.0,0.00019745,2]
[374653467,1753401059602,-460.0,0.00019745,2]
[374653468,1753401059611,-151.0,0.00019745,2]
[374653469,1753401059621,-737.78,0.00019745,2]
[374653470,1753401059631,-699.99,0.00019745,2]
[374653471,1753401059640,-460.0,0.00019745,2]
[374653472,1753401059650,-934.84,0.00019745,2]
[374653473,1753401059660,-460.0,0.00019745,2]
[374653474,1753401059670,-1052.61,0.00019745,2]
[374653475,1753401059681,-460.0,0.00019745,2]
[374653476,1753401059691,-467.13,0.00019745,2]
[374653477,1753401059701,-460.0,0.00019745,2]
[374653478,1753401059712,-704.04,0.00019745,2]
[374653479,1753401059722,-743.92,0.00019745,2]
[374653480,1753401059732,-961.48,0.00019745,2]
[374653481,1753401059742,-460.0,0.00019745,2]
[374653482,1753401059751,-460.0,0.00019745,2]
[374653483,1753401059761,-756.95,0.00019745,2]
[374653484,1753401059770,-460.0,0.00019745,2]
[374653485,1753401059780,-460.0,0.00019745,2]
[374653486,1753401059790,-1291.86,0.00019745,2]
[374653487,1753401059799,-460.0,0.00019745,2]
[374653488,1753401059809,-460.0,0.00019745,2]
[374653489,1753401059819,-467.08440281,0.00019745,2]
[374653490,1753401059828,-1267.48,0.00019745,2]
[374653491,1753401059838,-460.0,0.00019745,2]
[374653492,1753401059848,-460.0,0.00019745,2]
[374653493,1753401059857,-460.0,0.00019745,2]
[374653494,1753401059867,-560.33,0.00019745,2]
[374653495,1753401059876,-460.0,0.00019745,2]
[374653496,1753401059886,-460.0,0.00019745,2]
[374653497,1753401059896,-591.04,0.00019745,2]
[374653498,1753401059906,-537.65,0.00019745,2]
[374653499,1753401059916,-572.48,0.00019745,2]
[374653500,1753401059926,-273.72809956,0.00019745,2]
[374653501,1753401059936,-483.29,0.00019745,2]
[374653502,1753401059945,-1230.85,0.00019745,2]
[374653503,1753401060030,-1112.94,0.00019745,2]
[374653504,1753401060040,-460.0,0.00019745,2]
[374653505,1753401060050,-538.59,0.00019745,2]
[374653506,1753401060059,-650.3,0.00019745,2]
[374653507,1753401060069,-460.0,0.00019745,2]
[374653508,1753401060079,-460.0,0.00019745,2]
[374653509,1753401060088,-460.0,0.00019745,2]
[374653510,1753401060098,-460.0,0.00019745,2]
[374653511,1753401060107,-1210.61,0.00019746,2]
[374653512,1753401060116,-3833.04,0.00019746,2]
[374653513,1753401060126,-3180.14,0.00019746,2]
[374653514,1753401060135,-271.343558,0.00019746,2]
[374653515,1753401060143,-460.0,0.00019746,2]
[374653516,1753401060154,-151.0,0.00019746,2]
[374653517,1753401060163,-266.303106,0.00019746,2]
[374653518,1753401060174,-460.0,0.00019747,2]
[374653519,1753401060187,-151.0,0.00019747,2]
[374653520,1753401060197,-156.906836,0.00019747,2]
[374653521,1753401060207,-156.906836,0.00019747,2]
[374653522,1753401060217,-151.0,0.00019747,2]
[374653523,1753401060228,-151.0,0.00019747,2]
[374653524,1753401060239,-151.0,0.00019747,2]
[374653525,1753401060249,-170.883882,0.00019747,2]
[374653526,1753401060259,-151.0,0.00019747,2]
[374653527,1753401060270,-1840.34,0.00019747,2]
[374653528,1753401060280,-460.0,0.00019747,2]
[374653529,1753401060290,-542.68,0.00019747,2]
[374653530,1753401060300,-460.0,0.00019747,2]
[374653531,1753401060310,-460.0,0.00019747,2]
[374653532,1753401060320,-836.45,0.00019747,2]
[374653533,1753401060329,-460.0,0.00019747,2]
[374653534,1753401060339,-460.0,0.00019747,2]
[374653535,1753401060348,-460.0,0.00019747,2]
[374653536,1753401060358,-605.21,0.00019747,2]
[374653537,1753401060368,-460.0,0.00019747,2]
[374653538,1753401060378,-1607.54,0.00019747,2]
[374653539,1753401060388,-151.0,0.00019747,2]
[374653540,1753401060398,-690.56,0.00019747,2]
[374653541,1753401060408,-2311.21,0.00019747,2]
[374653542,1753401060418,-460.0,0.00019747,2]
[374653543,1753401060427,-808.62,0.00019747,2]
[374653544,1753401060439,-460.0,0.00019747,2]
[374653545,1753401060454,-586.24,0.00019747,2]
[374653546,1753401060464,-510.83,0.00019747,2]
[374653547,1753401060474,-2348.62,0.00019747,2]
[374653548,1753401060489,-802.59,0.00019747,2]
[374653549,1753401060499,-1028.98,0.00019747,2]
[374653550,1753401060509,-587.76,0.00019747,2]
[374653551,1753401060519,-460.0,0.00019747,2]
[374653552,1753401060529,-460.0,0.00019747,2]
[374653553,1753401060538,-3301.72,0.00019747,2]
[374653554,1753401060547,-494.9,0.00019747,2]
[374653555,1753401060567,-460.0,0.00019747,2]
[374653556,1753401060586,-3295.04,0.00019747,2]
[374653557,1753401060606,-462.06309785,0.00019747,2]
[374653558,1753401060627,-887.29,0.00019747,2]
[374653559,1753401060647,-2315.49,0.00019747,2]
[374653560,1753401060666,-460.0,0.00019747,2]
[374653561,1753401060685,-460.0,0.00019747,2]
[374653562,1753401060700,-2762.88,0.00019747,2]
[374653563,1753401060719,-460.0,0.00019747,2]
[374653564,1753401060739,-460.0,0.00019748,2]
[374653565,1753401060758,-460.0,0.00019748,2]
[374653566,1753401060772,-151.0,0.00019748,2]
[374653567,1753401060791,-151.0,0.00019748,2]
[374653568,1753401060807,-716.83,0.00019748,2]
[374653569,1753401060822,-472.09814532,0.00019748,2]
[374653570,1753401060837,-664.19,0.00019748,2]
[374653571,1753401060852,-755.41,0.00019748,2]
[374653572,1753401060867,-460.0,0.00019748,2]
[374653573,1753401060882,-460.0,0.00019748,2]
[374653574,1753401060897,-151.0,0.00019748,2]
[374653575,1753401060915,-460.0,0.00019748,2]
[374653576,1753401060929,-460.0,0.00019748,2]
[374653577,1753401060945,-460.0,0.00019748,2]
[374653578,1753401060961,-470.68193488,0.00019748,2]
[374653579,1753401060976,-177.705526,0.00019748,2]
[374653580,1753401060993,-460.0,0.00019748,2]
[374653581,1753401061009,-460.0,0.00019748,2]
[374653582,1753401061024,-460.0,0.00019748,2]
[374653583,1753401061040,-460.0,0.00019748,2]
[374653584,1753401061056,-500.0,0.00019748,2]
[374653585,1753401061072,-495.91,0.00019748,2]
[374653586,1753401061090,-460.0,0.00019748,2]
[374653587,1753401061105,-460.0,0.00019748,2]
[374653588,1753401061122,-460.0,0.00019748,2]
[374653589,1753401061137,-808.56,0.00019748,2]
[374653590,1753401061154,-460.0,0.00019748,2]
[374653591,1753401061169,-460.0,0.00019748,2]
[374653592,1753401061185,-460.0,0.00019748,2]
[374653593,1753401061201,-460.0,0.00019748,2]
[374653594,1753401061215,-460.0,0.00019748,2]
[374653595,1753401061225,-460.0,0.00019748,2]
[374653596,1753401061235,-460.0,0.00019748,2]
[374653597,1753401061245,-460.0,0.00019748,2]
[374653598,1753401061255,-1091.91,0.00019748,2]
[374653599,1753401061265,-1116.56,0.00019748,2]
[374653600,1753401061275,-467.827508,0.00019768,2]
[374653601,1753401061286,-467.827508,0.00019768,2]
[374653602,1753401061295,-270.119134,0.00019768,2]
[374653603,1753401061305,-270.119134,0.00019768,2]
[374653604,1753401061315,-517.221489,0.00019768,2]
[374653605,1753401061325,-517.221489,0.00019768,2]
[374653606,1753401061492,-508.0,0.00019812,2]
[374653607,1753401061511,-1074.0,0.00019846,2]
[374653608,1753401061521,-198.0,0.00019846,2]
[374653609,1753401061531,-199.85067858,0.00019846,2]
[374653610,1753401061541,-151.0,0.00019846,2]
[374653611,1753401061550,-263.89327024,0.00019846,2]
[374653612,1753401061560,-151.0,0.00019846,2]
[374653613,1753401061569,-981.0,0.00019846,2]
[374653614,1753401061579,-151.0,0.00019846,2]
[374653615,1753401061588,-197.82821464,0.00019846,2]
[374653616,1753401061598,-460.0,0.00019846,2]
[374653617,1753401061608,-460.0,0.00019846,2]
[374653618,1753401061617,-463.25321709,0.00019846,2]
[374653619,1753401061627,-460.0,0.00019846,2]
[374653620,1753401061637,-460.0,0.00019846,2]
[374653621,1753401061646,-460.0,0.00019846,2]
[374653622,1753401061658,-460.0,0.00019846,2]
[374653623,1753401061668,-460.0,0.00019846,2]
[374653624,1753401061678,-460.0,0.00019846,2]
[374653625,1753401061688,-460.0,0.00019846,2]
[374653626,1753401061697,-672.72,0.00019846,2]
[374653627,1753401061707,-460.0,0.00019846,2]
[374653628,1753401061717,-460.0,0.00019846,2]
[374653629,1753401061727,-460.0,0.00019847,2]
[374653630,1753401061736,-1317.32,0.00019847,2]
[374653631,1753401061746,-178.70934786,0.00019847,2]
[374653632,1753401061756,-460.0,0.00019848,2]
[374653633,1753401061766,-452.05898746,0.00019848,2]
[374653634,1753401061775,-460.0,0.00019848,2]
[374653635,1753401061784,-460.0,0.00019848,2]
[374653636,1753401061793,-460.0,0.00019848,2]
[374653637,1753401061803,-460.2,0.00019848,2]
[374653638,1753401061814,-188.465792,0.00019848,2]
[374653639,1753401061823,-217.669127,0.00019848,2]
[374653640,1753401061833,-217.669127,0.00019848,2]
[374653641,1753401061842,-231.456694,0.00019848,2]
[374653642,1753401061852,-231.456694,0.00019848,2]
[374653643,1753401061862,-227.064974,0.00019848,2]
[374653644,1753401061871,-227.064974,0.00019848,2]
[374653645,1753401061881,-4816.07695662,0.000199,2]
[374653646,1753401061892,-1145.92,0.00019911,3]
[374653647,1753401061905,-572.96,0.00019911,3]
[374653648,1753401061915,-460.0,0.00019913,2]
[374653649,1753401061925,-460.0,0.00019913,2]
[374653650,1753401061935,-590.39,0.00019913,2]
[374653651,1753401061945,-702.6,0.00019913,2]
[374653652,1753401061954,-2406.45,0.00019913,2]
[374653653,1753401061964,-478.79,0.00019913,2]
[374653654,1753401061973,-460.0,0.00019913,2]
[374653655,1753401061983,-745.75,0.00019913,2]
[374653656,1753401061992,-460.0,0.00019915,2]
[374653657,1753401062002,-707.67,0.00019915,2]
[374653658,1753401062015,-460.0,0.00019915,2]
[374653659,1753401062024,-7096.14,0.00019915,2]
[374653660,1753401062034,-3528.52,0.00019915,2]
[374653661,1753401062043,-460.0,0.00019915,2]
[374653662,1753401062053,-460.0,0.00019915,2]
[374653663,1753401062062,-460.0,0.00019915,2]
[374653664,1753401062071,-997.71,0.00019915,2]
[374653665,1753401062081,-460.0,0.00019915,2]
[374653666,1753401062091,-810.51,0.00019915,2]
[374653667,1753401062100,-432.36506327,0.00019915,2]
[374653668,1753401062110,-3531.67,0.00019915,2]
[374653669,1753401062119,-3121.86,0.00019915,2]
[374653670,1753401062129,-875.44,0.00019915,2]
[374653671,1753401062139,-460.0,0.00019915,2]
[374653672,1753401062148,-2551.42,0.00019915,2]
[374653673,1753401062160,-1053.69,0.00019915,2]
[374653674,1753401062170,-460.0,0.00019915,2]
[374653675,1753401062179,-460.0,0.00019916,2]
[374653676,1753401062189,-460.0,0.00019916,2]
[374653677,1753401062200,-460.0,0.00019916,2]
[374653678,1753401062209,-428.23895884,0.00019916,2]
[374653679,1753401062219,-460.0,0.00019917,2]
[374653680,1753401062228,-460.0,0.00019917,2]
[374653681,1753401062238,-460.0,0.00019917,2]
[374653682,1753401062248,-460.0,0.00019917,2]
[374653683,1753401062257,-460.0,0.00019917,2]
[374653684,1753401062266,-460.0,0.00019917,2]
[374653685,1753401062276,-776.37,0.00019917,2]
[374653686,1753401062286,-269.04292403,0.00019917,2]
[374653687,1753401062296,-619.26,0.00019917,2]
[374653688,1753401062306,-460.0,0.00019917,2]
[374653689,1753401062317,-460.0,0.00019917,2]
[374653690,1753401062327,-986.71,0.00019917,2]
[374653691,1753401062346,-460.0,0.00019917,2]
[374653692,1753401062360,-649.44,0.00019917,2]
[374653693,1753401062369,-460.0,0.00019917,2]
[374653694,1753401062378,-911.22,0.00019917,2]
[374653695,1753401062388,-779.76,0.00019917,2]
[374653696,1753401062397,-1391.18,0.00019917,2]
[374653697,1753401062410,-460.0,0.00019917,2]
[374653698,1753401062420,-460.0,0.00019917,2]
[374653699,1753401062430,-787.16,0.00019917,2]
[374653700,1753401062443,-460.0,0.00019917,2]
[374653701,1753401062453,-2617.62,0.00019917,2]
[374653702,1753401062463,-460.0,0.00019917,2]
[374653703,1753401062473,-460.0,0.00019917,2]
[374653704,1753401062485,-460.0,0.00019917,2]
[374653705,1753401062494,-1095.41,0.00019917,2]
[374653706,1753401062503,-552.46,0.00019917,2]
[374653707,1753401062513,-460.0,0.00019917,2]
[374653708,1753401062523,-465.25,0.00019917,2]
[374653709,1753401062532,-1183.67,0.00019917,2]
[374653710,1753401062541,-1440.29,0.00019917,2]
[374653711,1753401062551,-738.66,0.00019917,2]
[374653712,1753401062561,-460.0,0.00019917,2]
[374653713,1753401062570,-460.0,0.00019917,2]
[374653714,1753401062580,-460.0,0.00019917,2]
[374653715,1753401062589,-460.0,0.00019917,2]
[374653716,1753401062599,-460.0,0.00019917,2]
[374653717,1753401062608,-460.0,0.00019917,2]
[374653718,1753401062617,-503.11,0.00019917,2]
[374653719,1753401062627,-460.0,0.00019917,2]
[374653720,1753401062637,-738.2,0.00019917,2]
[374653721,1753401062646,-460.0,0.00019917,2]
[374653722,1753401062658,-532.71,0.00019917,2]
[374653723,1753401062667,-460.0,0.00019917,2]
[374653724,1753401062677,-460.0,0.0001992,2]
[374653725,1753401062686,-683.84,0.0001992,2]
[374653726,1753401062695,-460.0,0.0001992,2]
[374653727,1753401062705,-397.201254,0.0001992,2]
[374653728,1753401062715,-151.0,0.0001992,2]
[374653729,1753401062724,-596.17653845,0.0001992,2]
[374653730,1753401062733,-6897.2610702,0.0001992,2]
[374653731,1753401062743,-1556.96,0.0001992,2]
[374653732,1753401062752,-1197.85,0.0001992,2]
[374653733,1753401062761,-517.5,0.0001992,2]
[374653734,1753401062770,-460.0,0.0001992,2]
[374653735,1753401062780,-554.23,0.0001992,2]
[374653736,1753401062789,-976.57,0.0001992,2]
[374653737,1753401062801,-823.75,0.0001992,2]
[374653738,1753401062811,-1147.02,0.0001992,2]
[374653739,1753401062822,-577.94,0.0001992,2]
[374653740,1753401062832,-1434.4,0.0001992,2]
[374653741,1753401062843,-6244.15,0.0001992,2]
[374653742,1753401062852,-460.0,0.0001992,2]
[374653743,1753401062864,-13000.0,0.0002,2]
[374653744,1753401062874,-151.0,0.0002,2]
[374653745,1753401062884,-4000.0,0.0002,4]
[374653746,1753401062895,-408.84163523,0.00020019,2]
[374653747,1753401062908,-460.0,0.00020019,2]
[374653748,1753401062918,-460.0,0.00020019,2]
[374653749,1753401062928,-662.7,0.00020019,2]
[374653750,1753401062937,-460.0,0.00020019,2]
[374653751,1753401062947,-460.0,0.00020019,2]
[374653752,1753401062957,-460.0,0.00020019,2]
[374653753,1753401062966,-460.0,0.00020019,2]
[374653754,1753401062976,-737.78,0.00020019,2]
[374653755,1753401062985,-699.99,0.00020019,2]
[374653756,1753401062995,-460.0,0.00020019,2]
[374653757,1753401063005,-934.84,0.00020019,2]
[374653758,1753401063014,-1052.61,0.00020019,2]
[374653759,1753401063024,-460.0,0.00020019,2]
[374653760,1753401063034,-467.13,0.00020019,2]
[374653761,1753401063044,-460.0,0.00020019,2]
[374653762,1753401063054,-704.04,0.00020019,2]
[374653763,1753401063064,-743.92,0.00020019,2]
[374653764,1753401063074,-961.48,0.00020019,2]
[374653765,1753401063084,-460.0,0.00020019,2]
[374653766,1753401063094,-460.0,0.00020019,2]
[374653767,1753401063104,-756.95,0.00020019,2]
[374653768,1753401063115,-370.88270683,0.00020019,2]
[374653769,1753401063125,-460.0,0.00020019,2]
[374653770,1753401063135,-1291.86,0.00020019,2]
[374653771,1753401063145,-460.0,0.00020019,2]
[374653772,1753401063156,-460.0,0.00020019,2]
[374653773,1753401063166,-1267.48,0.00020019,2]
[374653774,1753401063176,-460.0,0.00020019,2]
[374653775,1753401063187,-460.0,0.00020019,2]
[374653776,1753401063197,-460.0,0.00020019,2]
[374653777,1753401063207,-560.33,0.00020019,2]
[374653778,1753401063217,-460.0,0.00020019,2]
[374653779,1753401063228,-460.0,0.00020019,2]
[374653780,1753401063239,-591.04,0.00020019,2]
[374653781,1753401063250,-537.65,0.00020019,2]
[374653782,1753401063260,-572.48,0.00020019,2]
[374653783,1753401063270,-483.29,0.00020019,2]
[374653784,1753401063280,-1230.85,0.00020019,2]
[374653785,1753401063290,-1112.94,0.00020019,2]
[374653786,1753401063299,-460.0,0.00020019,2]
[374653787,1753401063309,-538.59,0.00020019,2]
[374653788,1753401063319,-1500.0,0.00020019,7]
[374653789,1753401063328,-1500.0,0.00020019,7]
[374653790,1753401063339,-1500.0,0.00020019,7]
[374653791,1753401063348,-1500.0,0.00020019,7]
[374653792,1753401063358,-1500.0,0.00020019,7]
[374653793,1753401063368,-1500.0,0.00020019,7]
[374653794,1753401063378,-1500.0,0.00020019,7]
[374653795,1753401063388,-1500.0,0.00020019,7]
[374653796,1753401063398,-1500.0,0.00020019,7]
[374653797,1753401063410,-1500.0,0.00020019,7]
[374653798,1753401063420,-1500.0,0.00020019,7]
[374653799,1753401063430,-1500.0,0.00020019,7]
[374653800,1753401063444,-1500.0,0.00020019,7]
[374653801,1753401063454,-1500.0,0.00020019,7]
[374653802,1753401063464,-1500.0,0.00020019,7]
[374653803,1753401063474,-1500.0,0.00020019,7]
[374653804,1753401063484,-650.3,0.00020019,2]
[374653805,1753401063495,-1500.0,0.00020019,7]
[374653806,1753401063506,-1500.0,0.00020019,7]
[374653807,1753401063516,-1500.0,0.00020019,7]
[374653808,1753401063527,-1500.0,0.00020019,7]
[374653809,1753401063537,-1500.0,0.00020019,7]
[374653810,1753401063546,-1189.889258,0.00020019,7]
[374653811,1753401063556,-460.0,0.00020019,2]
[374653812,1753401063566,-460.0,0.00020019,2]
[374653813,1753401063575,-460.0,0.00020019,2]
[374653814,1753401063585,-71.69497444,0.0002002,2]
[374653815,1753401063595,-151.0,0.0002002,2]
[374653816,1753401063604,-151.0,0.0002002,2]
[374653817,1753401063614,-151.0,0.0002002,2]
[374653818,1753401063623,-151.0,0.0002002,2]
[374653819,1753401063633,-151.0,0.0002002,2]
[374653820,1753401063643,-151.0,0.0002002,2]
[374653821,1753401063653,-151.0,0.0002002,2]
[374653822,1753401063663,-151.0,0.0002002,2]
[374653823,1753401063673,-151.0,0.0002002,2]
[374653824,1753401063683,-500.0,0.0002002,2]
[374653825,1753401063693,-500.0,0.0002002,2]
[374653826,1753401063703,-151.0,0.0002002,2]
[374653827,1753401063712,-500.0,0.0002002,2]
[374653828,1753401063722,-1210.61,0.0002002,2]
[374653829,1753401063733,-3833.04,0.0002002,2]
[374653830,1753401063743,-3180.14,0.0002002,2]
[374653831,1753401063754,-460.0,0.0002002,2]
[374653832,1753401063764,-345.0,0.00020021,2]
[374653833,1753401063774,-151.0,0.00020021,2]
[374653834,1753401063784,-1840.34,0.00020021,2]
[374653835,1753401063794,-542.68,0.00020021,2]
[374653836,1753401063805,-151.0,0.00020021,2]
[374653837,1753401063815,-460.0,0.00020021,2]
[374653838,1753401063825,-836.45,0.00020021,2]
[374653839,1753401063835,-460.0,0.00020021,2]
[374653840,1753401063845,-460.0,0.00020021,2]
[374653841,1753401063855,-177.705526,0.00020021,2]
[374653842,1753401063865,-177.705526,0.00020021,2]
[374653843,1753401063875,-460.0,0.00020021,2]
[374653844,1753401063885,-605.21,0.00020021,2]
[374653845,1753401063894,-460.0,0.00020021,2]
[374653846,1753401063904,-1607.54,0.00020021,2]
[374653847,1753401063914,-690.56,0.00020021,2]
[374653848,1753401063923,-2311.21,0.00020021,2]
[374653849,1753401064032,-460.0,0.00020021,2]
[374653850,1753401064044,-467.827508,0.00020021,2]
[374653851,1753401064056,-467.827508,0.00020021,2]
[374653852,1753401064066,-808.62,0.00020021,2]
[374653853,1753401064075,-270.119134,0.00020021,2]
[374653854,1753401064085,-460.0,0.00020021,2]
[374653855,1753401064094,-270.119134,0.00020021,2]
[374653856,1753401064104,-586.24,0.00020021,2]
[374653857,1753401064115,-510.83,0.00020021,2]
[374653858,1753401064125,-2348.62,0.00020021,2]
[374653859,1753401064135,-802.59,0.00020021,2]
[374653860,1753401064144,-1028.98,0.00020021,2]
[374653861,1753401064155,-587.76,0.00020021,2]
[374653862,1753401064165,-517.221489,0.00020021,2]
[374653863,1753401064175,-517.221489,0.00020021,2]
[374653864,1753401064185,-460.0,0.00020021,2]
[374653865,1753401064195,-460.0,0.00020021,2]
[374653866,1753401064204,-3301.72,0.00020021,2]
[374653867,1753401064214,-494.9,0.00020021,2]
[374653868,1753401064224,-211.06454854,0.00020021,2]
[374653869,1753401064233,-3295.04,0.00020021,2]
[374653870,1753401064243,-887.29,0.00020021,2]
[374653871,1753401064253,-2315.49,0.00020021,2]
[374653872,1753401064263,-460.0,0.00020021,2]
[374653873,1753401064273,-2762.88,0.00020021,2]
[374653874,1753401064283,-460.0,0.00020021,2]
[374653875,1753401064293,-460.0,0.00020022,2]
[374653876,1753401064302,-460.0,0.00020022,2]
[374653877,1753401064312,-716.83,0.00020022,2]
[374653878,1753401064321,-151.0,0.00020022,2]
[374653879,1753401064331,-67.28892272,0.00020022,2]
[374653880,1753401064422,-596.90107728,0.00020022,2]
[374653881,1753401064432,-755.41,0.00020022,2]
[374653882,1753401064446,-170.883882,0.00020022,2]
[374653883,1753401064456,-227.811382,0.00020022,2]
[374653884,1753401064465,-460.0,0.00020022,2]
[374653885,1753401064475,-460.0,0.00020022,2]
[374653886,1753401064486,-460.0,0.00020022,2]
[374653887,1753401064495,-460.0,0.00020022,2]
[374653888,1753401064505,-460.0,0.00020022,2]
[374653889,1753401064517,-460.0,0.00020022,2]
[374653890,1753401064527,-460.0,0.00020022,2]
[374653891,1753401064536,-500.0,0.00020022,2]
[374653892,1753401064546,-495.91,0.00020022,2]
[374653893,1753401064555,-486.40619451,0.00020022,2]
[374653894,1753401064565,-460.0,0.00020022,2]
[374653895,1753401064574,-460.0,0.00020022,2]
[374653896,1753401064584,-808.56,0.00020022,2]
[374653897,1753401064593,-415.50965263,0.00020022,2]
[374653898,1753401064604,-460.0,0.00020022,2]
[374653899,1753401064614,-460.0,0.00020022,2]
[374653900,1753401064623,-460.0,0.00020022,2]
[374653901,1753401064632,-460.0,0.00020022,2]
[374653902,1753401064642,-460.0,0.00020022,2]
[374653903,1753401064651,-509.52806293,0.00020022,2]
[374653904,1753401064663,-460.0,0.00020022,2]
[374653905,1753401064673,-1091.91,0.00020022,2]
[374653906,1753401064683,-1116.56,0.00020022,2]
[374653907,1753401064692,-173.612,0.00020025,2]
[374653908,1753401064703,-500.0,0.0002005,2]
[374653909,1753401064713,-500.0,0.0002005,2]
[374653910,1753401064722,-500.48842012,0.0002005,2]
[374653911,1753401064731,-500.0,0.0002005,2]
[374653912,1753401064741,-500.0,0.0002005,2]
[374653913,1753401064750,-502.05891511,0.0002005,2]
[374653914,1753401064760,-500.0,0.0002005,2]
[374653915,1753401064770,-500.0,0.0002005,2]
[374653916,1753401064779,-500.0,0.0002005,2]
[374653917,1753401064789,-500.0,0.0002005,2]
[374653918,1753401064798,-501.221856,0.0002005,2]
[374653919,1753401064808,-500.0,0.0002005,2]
[374653920,1753401064817,-87.24148216,0.0002005,2]
[374653921,1753401064830,-412.75851784,0.0002005,2]
[374653922,1753401064839,-500.88108749,0.0002005,2]